[Event "Titled Tuesday Blitz February 28 Early 2023"]
[White "Gatterer, Florian"]
[Black "Necula, Iulian"]
[WhiteFideId "811688"]
[BlackFideId "1232380"]
[WhiteElo "2221"]
[BlackElo "1790"]
[Result "1/2-1/2"]
[Round "08"]
[TimeControl "180+2"]
[Date "2023.02.28"]
[WhiteClock "0:02:19"]
[BlackClock "0:02:42"]

1. c4 {[%clk 0:03:00]}  f5 {[%clk 0:02:59]} 2. g3 {[%clk 0:02:57]}  Nf6 {[%clk 0:02:58]} 3. Bg2 {[%clk 0:02:57]}  d6 {[%clk 0:02:59]} 4. Nc3 {[%clk 0:02:53]}  e5 {[%clk 0:02:58]} 5. d3 {[%clk 0:02:53]}  g6 {[%clk 0:02:58]} 6. e4 {[%clk 0:02:53]}  Bg7 {[%clk 0:02:57]} 7. Nge2 {[%clk 0:02:53]}  c6 {[%clk 0:02:57]} 8. O-O {[%clk 0:02:52]}  O-O {[%clk 0:02:56]} 9. exf5 {[%clk 0:02:52]}  Bxf5 {[%clk 0:02:56]} 10. d4 {[%clk 0:02:52]}  e4 {[%clk 0:02:49]} 11. h3 {[%clk 0:02:53]}  h5 {[%clk 0:02:49]} 12. Be3 {[%clk 0:02:40]}  Qd7 {[%clk 0:02:49]} 13. Kh2 {[%clk 0:02:39]}  d5 {[%clk 0:02:49]} 14. cxd5 {[%clk 0:02:34]}  cxd5 {[%clk 0:02:49]} 15. Nf4 {[%clk 0:02:34]}  Nc6 {[%clk 0:02:43]} 16. Rc1 {[%clk 0:02:22]}  Rac8 {[%clk 0:02:42]} 17. a3 {[%clk 0:02:19]}  a6 {[%clk 0:02:42]} 1/2-1/2


[Site "https://www.chess.com"]

[Event "Titled Tuesday Blitz February 28 Early 2023"]
[White "Kriti Mayur Patel"]
[Black "Kornyukov, Alexey"]
[WhiteFideId "35061780"]
[BlackFideId "4150457"]
[WhiteElo "1306"]
[BlackElo "2352"]
[Result "0-1"]
[Round "08"]
[TimeControl "180+2"]
[Date "2023.02.28"]
[WhiteClock "0:00:10"]
[BlackClock "0:00:34"]

1. e4 {[%clk 0:03:00]}  c5 {[%clk 0:02:57]} 2. d4 {[%clk 0:03:00]}  cxd4 {[%clk 0:02:56]} 3. c3 {[%clk 0:03:01]}  dxc3 {[%clk 0:02:55]} 4. Nxc3 {[%clk 0:03:01]}  Nc6 {[%clk 0:02:54]} 5. Nf3 {[%clk 0:03:01]}  e5 {[%clk 0:02:52]} 6. Bc4 {[%clk 0:02:59]}  d6 {[%clk 0:02:44]} 7. O-O {[%clk 0:02:33]}  Be7 {[%clk 0:02:41]} 8. Qb3 {[%clk 0:02:28]}  Na5 {[%clk 0:02:32]} 9. Bxf7+ {[%clk 0:02:18]}  Kf8 {[%clk 0:02:30]} 10. Qd5 {[%clk 0:02:18]}  Nf6 {[%clk 0:02:25]} 11. Qd3 {[%clk 0:02:09]}  Kxf7 {[%clk 0:02:25]} 12. Ng5+ {[%clk 0:02:08]}  Kf8 {[%clk 0:02:16]} 13. f4 {[%clk 0:02:07]}  h6 {[%clk 0:02:11]} 14. Nf3 {[%clk 0:01:50]}  Nc6 {[%clk 0:02:07]} 15. Nh4 {[%clk 0:01:48]}  exf4 {[%clk 0:02:01]} 16. Ng6+ {[%clk 0:01:45]}  Kg8 {[%clk 0:02:00]} 17. Nxh8 {[%clk 0:01:38]}  Kxh8 {[%clk 0:01:58]} 18. Bxf4 {[%clk 0:01:39]}  Be6 {[%clk 0:01:52]} 19. Rad1 {[%clk 0:01:32]}  Qb6+ {[%clk 0:01:50]} 20. Kh1 {[%clk 0:01:31]}  Rd8 {[%clk 0:01:49]} 21. Qd2 {[%clk 0:01:29]}  Ng4 {[%clk 0:01:42]} 22. h3 {[%clk 0:01:25]}  Nge5 {[%clk 0:01:34]} 23. Bxh6 {[%clk 0:01:23]}  Nc4 {[%clk 0:01:24]} 24. Qf4 {[%clk 0:00:41]}  Rf8 {[%clk 0:01:15]} 25. Bxg7+ {[%clk 0:00:27]}  Kxg7 {[%clk 0:01:13]} 26. Qg3+ {[%clk 0:00:27]}  Kh7 {[%clk 0:01:06]} 27. Nd5 {[%clk 0:00:20]}  Bxd5 {[%clk 0:00:58]} 28. Rxf8 {[%clk 0:00:20]}  Bxf8 {[%clk 0:00:57]} 29. Rxd5 {[%clk 0:00:18]}  N4e5 {[%clk 0:00:50]} 30. Qh4+ {[%clk 0:00:16]}  Bh6 {[%clk 0:00:49]} 31. Rxd6 {[%clk 0:00:14]}  Qxb2 {[%clk 0:00:45]} 32. Rxh6+ {[%clk 0:00:06]}  Kg8 {[%clk 0:00:43]} 33. Qg5+ {[%clk 0:00:06]}  Kf8 {[%clk 0:00:40]} 34. Rf6+ {[%clk 0:00:02]}  Nf7 {[%clk 0:00:37]} 35. Qh6+ {[%clk 0:00:01]}  Ke7 {[%clk 0:00:35]} 36. Rxf7+ {[%clk 0:00:02]}  Kxf7 {[%clk 0:00:35]} 37. Qf4+ {[%clk 0:00:02]}  Qf6 {[%clk 0:00:35]} 38. Qxf6+ {[%clk 0:00:02]}  Kxf6 {[%clk 0:00:35]} 39. Kh2 {[%clk 0:00:02]}  Ne5 {[%clk 0:00:35]} 40. Kg3 {[%clk 0:00:03]}  b5 {[%clk 0:00:35]} 41. Kf4 {[%clk 0:00:03]}  a5 {[%clk 0:00:35]} 42. g4 {[%clk 0:00:04]}  Nd3+ {[%clk 0:00:35]} 43. Ke3 {[%clk 0:00:03]}  Nc1 {[%clk 0:00:35]} 44. h4 {[%clk 0:00:04]}  Nxa2 {[%clk 0:00:35]} 45. g5+ {[%clk 0:00:05]}  Kg6 {[%clk 0:00:35]} 46. e5 {[%clk 0:00:04]}  Nb4 {[%clk 0:00:35]} 47. Kd4 {[%clk 0:00:04]}  a4 {[%clk 0:00:34]} 48. Kc5 {[%clk 0:00:03]}  a3 {[%clk 0:00:33]} 49. Kxb4 {[%clk 0:00:03]}  a2 {[%clk 0:00:33]} 50. e6 {[%clk 0:00:04]}  a1=Q {[%clk 0:00:33]} 51. e7 {[%clk 0:00:05]}  Qe5 {[%clk 0:00:33]} 52. Ka5 {[%clk 0:00:03]}  Qxe7 {[%clk 0:00:33]} 53. h5+ {[%clk 0:00:04]}  Kxh5 {[%clk 0:00:33]} 54. Kxb5 {[%clk 0:00:05]}  Kxg5 {[%clk 0:00:33]} 55. Ka6 {[%clk 0:00:06]}  Qb4 {[%clk 0:00:33]} 56. Ka7 {[%clk 0:00:06]}  Kf6 {[%clk 0:00:33]} 57. Ka8 {[%clk 0:00:07]}  Ke6 {[%clk 0:00:33]} 58. Ka7 {[%clk 0:00:08]}  Kd6 {[%clk 0:00:34]} 59. Ka6 {[%clk 0:00:09]}  Kc6 {[%clk 0:00:34]} 60. Ka7 {[%clk 0:00:10]}  Qb7# {[%clk 0:00:34]} 0-1


[Site "https://www.chess.com"]

[Event "Titled Tuesday Blitz February 28 Early 2023"]
[White "Seifert, Henryk"]
[Black "De Souza, Cristiano Gomes"]
[WhiteFideId "1100963"]
[BlackFideId "2151758"]
[WhiteElo "2071"]
[BlackElo "2068"]
[Result "0-1"]
[Round "08"]
[TimeControl "180+2"]
[Date "2023.02.28"]
[WhiteClock "0:00:01"]
[BlackClock "0:00:53"]

1. e4 {[%clk 0:03:00]}  c5 {[%clk 0:02:46]} 2. Nf3 {[%clk 0:03:00]}  d6 {[%clk 0:02:46]} 3. c3 {[%clk 0:02:58]}  Nf6 {[%clk 0:02:45]} 4. Be2 {[%clk 0:02:59]}  Bd7 {[%clk 0:02:44]} 5. d3 {[%clk 0:02:52]}  Bc6 {[%clk 0:02:44]} 6. O-O {[%clk 0:02:50]}  Nbd7 {[%clk 0:02:44]} 7. Nbd2 {[%clk 0:02:50]}  g6 {[%clk 0:02:42]} 8. a4 {[%clk 0:02:43]}  Bg7 {[%clk 0:02:42]} 9. Nc4 {[%clk 0:02:43]}  b6 {[%clk 0:02:40]} 10. h3 {[%clk 0:02:33]}  O-O {[%clk 0:02:40]} 11. Bf4 {[%clk 0:02:33]}  Ne8 {[%clk 0:02:36]} 12. e5 {[%clk 0:02:20]}  dxe5 {[%clk 0:02:30]} 13. Nfxe5 {[%clk 0:02:19]}  Nxe5 {[%clk 0:02:29]} 14. Bxe5 {[%clk 0:02:07]}  Nd6 {[%clk 0:02:17]} 15. Bxg7 {[%clk 0:02:00]}  Kxg7 {[%clk 0:02:16]} 16. Nxd6 {[%clk 0:01:37]}  Qxd6 {[%clk 0:02:14]} 17. Bf3 {[%clk 0:01:36]}  Bxf3 {[%clk 0:02:13]} 18. Qxf3 {[%clk 0:01:35]}  Rad8 {[%clk 0:02:14]} 19. Rfd1 {[%clk 0:01:33]}  Rd7 {[%clk 0:02:12]} 20. d4 {[%clk 0:01:32]}  Rfd8 {[%clk 0:02:06]} 21. dxc5 {[%clk 0:01:15]}  Qxc5 {[%clk 0:02:05]} 22. Rxd7 {[%clk 0:01:10]}  Rxd7 {[%clk 0:02:05]} 23. Rd1 {[%clk 0:01:02]}  Rxd1+ {[%clk 0:01:55]} 24. Qxd1 {[%clk 0:01:03]}  Qc6 {[%clk 0:01:55]} 25. Qd4+ {[%clk 0:00:59]}  f6 {[%clk 0:01:51]} 26. a5 {[%clk 0:00:52]}  Kf7 {[%clk 0:01:43]} 27. a6 {[%clk 0:00:33]}  Qb5 {[%clk 0:01:24]} 28. c4 {[%clk 0:00:26]}  Qxa6 {[%clk 0:01:23]} 29. Qd5+ {[%clk 0:00:24]}  Kg7 {[%clk 0:01:22]} 30. Qe6 {[%clk 0:00:14]}  Qb7 {[%clk 0:01:16]} 31. b4 {[%clk 0:00:14]}  Qc7 {[%clk 0:01:15]} 32. b5 {[%clk 0:00:12]}  Qd6 {[%clk 0:01:11]} 33. Qc8 {[%clk 0:00:06]}  h5 {[%clk 0:01:08]} 34. Qb7 {[%clk 0:00:04]}  Kf7 {[%clk 0:01:04]} 35. Qxa7 {[%clk 0:00:04]}  Qd1+ {[%clk 0:00:59]} 36. Kh2 {[%clk 0:00:03]}  Qd6+ {[%clk 0:00:58]} 37. g3 {[%clk 0:00:03]}  Qe6 {[%clk 0:00:57]} 38. Qc7 {[%clk 0:00:01]}  Qd6 {[%clk 0:00:53]} 0-1


[Site "https://www.chess.com"]

[Event "Titled Tuesday Blitz February 28 Early 2023"]
[White "Kalaiyalahan, Akshaya"]
[Black "WindWhistler11"]
[WhiteFideId "422894"]
[WhiteElo "2043"]
[BlackElo "2519"]
[Result "0-1"]
[Round "08"]
[TimeControl "180+2"]
[Date "2023.02.28"]
[WhiteClock "0:00:04"]
[BlackClock "0:00:57"]

1. c4 {[%clk 0:02:59]}  Nf6 {[%clk 0:02:59]} 2. Nc3 {[%clk 0:02:58]}  g6 {[%clk 0:02:58]} 3. g3 {[%clk 0:02:58]}  d5 {[%clk 0:02:59]} 4. cxd5 {[%clk 0:02:57]}  Nxd5 {[%clk 0:02:59]} 5. Bg2 {[%clk 0:02:57]}  Nb6 {[%clk 0:02:59]} 6. Nf3 {[%clk 0:02:49]}  Bg7 {[%clk 0:02:59]} 7. O-O {[%clk 0:02:48]}  O-O {[%clk 0:02:58]} 8. d4 {[%clk 0:02:44]}  Na6 {[%clk 0:02:56]} 9. e4 {[%clk 0:02:32]}  Bg4 {[%clk 0:02:50]} 10. e5 {[%clk 0:02:19]}  c5 {[%clk 0:02:42]} 11. dxc5 {[%clk 0:01:50]}  Nxc5 {[%clk 0:02:42]} 12. Be3 {[%clk 0:01:42]}  Ncd7 {[%clk 0:02:32]} 13. h3 {[%clk 0:01:33]}  Bxf3 {[%clk 0:02:14]} 14. Bxf3 {[%clk 0:01:27]}  Nxe5 {[%clk 0:02:02]} 15. Bxb7 {[%clk 0:01:26]}  Rb8 {[%clk 0:01:56]} 16. Bg2 {[%clk 0:01:14]}  Nec4 {[%clk 0:01:46]} 17. Qxd8 {[%clk 0:00:51]}  Rfxd8 {[%clk 0:01:46]} 18. Bc5 {[%clk 0:00:45]}  Nxb2 {[%clk 0:01:35]} 19. Nb5 {[%clk 0:00:40]}  N2a4 {[%clk 0:01:18]} 20. Bxe7 {[%clk 0:00:39]}  Re8 {[%clk 0:01:16]} 21. Rae1 {[%clk 0:00:35]}  Bc3 {[%clk 0:01:00]} 22. Re3 {[%clk 0:00:14]}  Bd2 {[%clk 0:00:58]} 23. Re2 {[%clk 0:00:10]}  Bb4 {[%clk 0:00:58]} 24. Nc7 {[%clk 0:00:04]}  Rxe7 {[%clk 0:00:57]} 0-1


[Site "https://www.chess.com"]

[Event "Titled Tuesday Blitz February 28 Early 2023"]
[White "EdmundPlayer"]
[Black "Qashashvili, Alexandre"]
[BlackFideId "13600842"]
[WhiteElo "2203"]
[BlackElo "2405"]
[Result "0-1"]
[Round "08"]
[TimeControl "180+2"]
[Date "2023.02.28"]
[WhiteClock "0:00:03"]
[BlackClock "0:00:36"]

1. e4 {[%clk 0:02:03]}  c6 {[%clk 0:03:00]} 2. d4 {[%clk 0:02:03]}  d5 {[%clk 0:02:58]} 3. e5 {[%clk 0:02:00]}  Bf5 {[%clk 0:02:57]} 4. Nf3 {[%clk 0:01:59]}  e6 {[%clk 0:02:56]} 5. Be2 {[%clk 0:01:54]}  h6 {[%clk 0:02:55]} 6. Nbd2 {[%clk 0:01:54]}  c5 {[%clk 0:02:55]} 7. dxc5 {[%clk 0:01:54]}  Bxc5 {[%clk 0:02:55]} 8. Nb3 {[%clk 0:01:54]}  Bb6 {[%clk 0:02:55]} 9. a4 {[%clk 0:01:53]}  Nc6 {[%clk 0:02:53]} 10. Bd2 {[%clk 0:01:50]}  Nge7 {[%clk 0:02:51]} 11. a5 {[%clk 0:01:49]}  Bc7 {[%clk 0:02:52]} 12. a6 {[%clk 0:01:49]}  bxa6 {[%clk 0:02:50]} 13. Bc3 {[%clk 0:01:29]}  a5 {[%clk 0:02:49]} 14. O-O {[%clk 0:01:26]}  O-O {[%clk 0:02:48]} 15. Qd2 {[%clk 0:01:14]}  Ng6 {[%clk 0:02:43]} 16. Nxa5 {[%clk 0:00:58]}  Ncxe5 {[%clk 0:02:41]} 17. Nxe5 {[%clk 0:00:56]}  Bxe5 {[%clk 0:02:37]} 18. Bb4 {[%clk 0:00:46]}  Bd6 {[%clk 0:02:25]} 19. Nc6 {[%clk 0:00:34]}  Bxb4 {[%clk 0:02:20]} 20. Qxb4 {[%clk 0:00:33]}  Qc7 {[%clk 0:02:14]} 21. Nd4 {[%clk 0:00:25]}  Nf4 {[%clk 0:01:58]} 22. Bf3 {[%clk 0:00:22]}  Bg6 {[%clk 0:01:50]} 23. Nb5 {[%clk 0:00:21]}  Qb8 {[%clk 0:01:48]} 24. Qc5 {[%clk 0:00:18]}  Rc8 {[%clk 0:01:42]} 25. Qe3 {[%clk 0:00:13]}  Bxc2 {[%clk 0:01:33]} 26. Nxa7 {[%clk 0:00:10]}  Re8 {[%clk 0:01:02]} 27. Rfc1 {[%clk 0:00:05]}  Bh7 {[%clk 0:00:56]} 28. b3 {[%clk 0:00:05]}  Ng6 {[%clk 0:00:54]} 29. Nc6 {[%clk 0:00:05]}  Qb7 {[%clk 0:00:49]} 30. b4 {[%clk 0:00:03]}  Rxa1 {[%clk 0:00:45]} 31. Rxa1 {[%clk 0:00:03]}  Qxc6 {[%clk 0:00:44]} 32. Qc5 {[%clk 0:00:03]}  Qxc5 {[%clk 0:00:44]} 33. bxc5 {[%clk 0:00:03]}  Rc8 {[%clk 0:00:43]} 34. Rc1 {[%clk 0:00:03]}  Ne5 {[%clk 0:00:43]} 35. Be2 {[%clk 0:00:03]}  Bd3 {[%clk 0:00:42]} 36. Bd1 {[%clk 0:00:03]}  Bc4 {[%clk 0:00:40]} 37. f4 {[%clk 0:00:02]}  Nd3 {[%clk 0:00:39]} 38. Rc3 {[%clk 0:00:02]}  Nxf4 {[%clk 0:00:36]} 39. Bc2 {[%clk 0:00:03]}  Ne2+ {[%clk 0:00:36]} 40. Kf2 {[%clk 0:00:03]}  Nxc3 {[%clk 0:00:36]} 0-1


[Site "https://www.chess.com"]

[Event "Titled Tuesday Blitz February 28 Early 2023"]
[White "parintele_chess"]
[Black "Kiseljova, Marya"]
[BlackFideId "4155009"]
[WhiteElo "2234"]
[BlackElo "1807"]
[Result "0-1"]
[Round "08"]
[TimeControl "180+2"]
[Date "2023.02.28"]
[WhiteClock "0:00:18"]
[BlackClock "0:01:06"]

1. d4 {[%clk 0:02:59]}  Nf6 {[%clk 0:02:53]} 2. Bf4 {[%clk 0:02:58]}  e6 {[%clk 0:02:52]} 3. Nf3 {[%clk 0:02:58]}  d5 {[%clk 0:02:52]} 4. e3 {[%clk 0:02:59]}  c5 {[%clk 0:02:53]} 5. c3 {[%clk 0:02:57]}  Nc6 {[%clk 0:02:53]} 6. Nbd2 {[%clk 0:02:57]}  Nh5 {[%clk 0:02:53]} 7. Bg5 {[%clk 0:02:48]}  Qb6 {[%clk 0:02:52]} 8. Qb3 {[%clk 0:02:45]}  h6 {[%clk 0:02:43]} 9. Bh4 {[%clk 0:02:40]}  g5 {[%clk 0:02:43]} 10. Bg3 {[%clk 0:02:38]}  Bg7 {[%clk 0:02:26]} 11. Bd6 {[%clk 0:02:26]}  c4 {[%clk 0:02:21]} 12. Qc2 {[%clk 0:02:22]}  Nxd4 {[%clk 0:02:14]} 13. exd4 {[%clk 0:02:12]}  Qxd6 {[%clk 0:02:14]} 14. Be2 {[%clk 0:02:11]}  Nf4 {[%clk 0:02:11]} 15. g3 {[%clk 0:02:04]}  Nxe2 {[%clk 0:02:10]} 16. Kxe2 {[%clk 0:02:05]}  Bd7 {[%clk 0:02:05]} 17. Rae1 {[%clk 0:01:53]}  O-O-O {[%clk 0:01:55]} 18. b3 {[%clk 0:01:51]}  cxb3 {[%clk 0:01:51]} 19. axb3 {[%clk 0:01:51]}  Kb8 {[%clk 0:01:48]} 20. c4 {[%clk 0:01:49]}  dxc4 {[%clk 0:01:44]} 21. bxc4 {[%clk 0:01:50]}  Bc6 {[%clk 0:01:43]} 22. Ne4 {[%clk 0:01:35]}  Qc7 {[%clk 0:01:17]} 23. c5 {[%clk 0:00:28]}  g4 {[%clk 0:01:10]} 24. Nfd2 {[%clk 0:00:21]}  f5 {[%clk 0:01:09]} 25. Nd6 {[%clk 0:00:20]}  Bxh1 {[%clk 0:01:09]} 26. Rxh1 {[%clk 0:00:20]}  Bxd4 {[%clk 0:01:08]} 27. Rb1 {[%clk 0:00:19]}  Rxd6 {[%clk 0:01:06]} 28. cxd6 {[%clk 0:00:18]}  Qxc2 {[%clk 0:01:06]} 0-1


[Site "https://www.chess.com"]

[Event "Titled Tuesday Blitz February 28 Early 2023"]
[White "Vargas, Mauricio"]
[Black "Simonovic, Miroslav"]
[WhiteFideId "4404572"]
[BlackFideId "919152"]
[WhiteElo "2025"]
[BlackElo "2057"]
[Result "1-0"]
[Round "08"]
[TimeControl "180+2"]
[Date "2023.02.28"]
[WhiteClock "0:00:35"]
[BlackClock "0:00:11"]

1. e4 {[%clk 0:01:33]}  c5 {[%clk 0:02:59]} 2. Nc3 {[%clk 0:01:32]}  Nc6 {[%clk 0:03:00]} 3. f4 {[%clk 0:01:33]}  e5 {[%clk 0:03:00]} 4. Nf3 {[%clk 0:01:34]}  exf4 {[%clk 0:03:00]} 5. Bb5 {[%clk 0:01:34]}  g6 {[%clk 0:02:57]} 6. Bxc6 {[%clk 0:01:34]}  dxc6 {[%clk 0:02:57]} 7. d3 {[%clk 0:01:35]}  Bg7 {[%clk 0:02:57]} 8. Bxf4 {[%clk 0:01:34]}  Ne7 {[%clk 0:02:57]} 9. O-O {[%clk 0:01:33]}  O-O {[%clk 0:02:56]} 10. Qe1 {[%clk 0:01:31]}  f5 {[%clk 0:02:47]} 11. Qh4 {[%clk 0:01:30]}  Kh8 {[%clk 0:02:17]} 12. Bg5 {[%clk 0:01:23]}  Re8 {[%clk 0:02:06]} 13. exf5 {[%clk 0:01:14]}  Bxf5 {[%clk 0:02:02]} 14. Rae1 {[%clk 0:01:09]}  Bf8 {[%clk 0:01:50]} 15. Bf6+ {[%clk 0:01:05]}  Kg8 {[%clk 0:01:50]} 16. Ng5 {[%clk 0:00:57]}  h6 {[%clk 0:01:47]} 17. Rxf5 {[%clk 0:00:45]}  Nxf5 {[%clk 0:01:26]} 18. Qc4+ {[%clk 0:00:42]}  Qd5 {[%clk 0:01:05]} 19. Nxd5 {[%clk 0:00:42]}  Rxe1+ {[%clk 0:01:04]} 20. Kf2 {[%clk 0:00:40]}  Re2+ {[%clk 0:00:11]} 21. Kxe2 {[%clk 0:00:37]}  Re8+ {[%clk 0:00:12]} 22. Kf2 {[%clk 0:00:37]}  Nd6 {[%clk 0:00:11]} 23. Ne7# {[%clk 0:00:35]} 1-0


[Site "https://www.chess.com"]

[Event "Titled Tuesday Blitz February 28 Early 2023"]
[White "Mendez Machado, Andre"]
[Black "Ricaurte Lopez, Juan Carlos"]
[WhiteFideId "6603793"]
[BlackFideId "3600327"]
[WhiteElo "1989"]
[BlackElo "2209"]
[Result "1-0"]
[Round "08"]
[TimeControl "180+2"]
[Date "2023.02.28"]
[WhiteClock "0:00:10"]
[BlackClock "0:00:06"]

1. e4 {[%clk 0:03:00]}  e5 {[%clk 0:02:58]} 2. Nf3 {[%clk 0:03:01]}  Nc6 {[%clk 0:02:56]} 3. Bc4 {[%clk 0:03:01]}  Nf6 {[%clk 0:02:55]} 4. Ng5 {[%clk 0:03:02]}  d5 {[%clk 0:02:53]} 5. exd5 {[%clk 0:03:02]}  Na5 {[%clk 0:02:52]} 6. Bb5+ {[%clk 0:03:03]}  c6 {[%clk 0:02:52]} 7. dxc6 {[%clk 0:03:04]}  bxc6 {[%clk 0:02:52]} 8. Bd3 {[%clk 0:03:05]}  h6 {[%clk 0:02:45]} 9. Ne4 {[%clk 0:03:04]}  Nd5 {[%clk 0:02:40]} 10. O-O {[%clk 0:03:03]}  Be7 {[%clk 0:02:38]} 11. Re1 {[%clk 0:03:01]}  O-O {[%clk 0:02:37]} 12. Nbc3 {[%clk 0:02:59]}  f5 {[%clk 0:02:33]} 13. Ng3 {[%clk 0:02:51]}  e4 {[%clk 0:02:30]} 14. Bf1 {[%clk 0:02:51]}  Bc5 {[%clk 0:02:14]} 15. d3 {[%clk 0:02:41]}  Qh4 {[%clk 0:01:51]} 16. dxe4 {[%clk 0:02:32]}  Nxc3 {[%clk 0:01:49]} 17. bxc3 {[%clk 0:02:27]}  f4 {[%clk 0:01:15]} 18. Nh1 {[%clk 0:02:26]}  f3 {[%clk 0:01:12]} 19. g3 {[%clk 0:02:09]}  Qe7 {[%clk 0:00:55]} 20. Be3 {[%clk 0:02:06]}  Be6 {[%clk 0:00:52]} 21. Bxc5 {[%clk 0:01:28]}  Qxc5 {[%clk 0:00:52]} 22. Re3 {[%clk 0:01:28]}  Rad8 {[%clk 0:00:46]} 23. Qe1 {[%clk 0:01:28]}  Bc4 {[%clk 0:00:37]} 24. Rd1 {[%clk 0:01:04]}  Bxa2 {[%clk 0:00:34]} 25. Rxd8 {[%clk 0:01:03]}  Rxd8 {[%clk 0:00:33]} 26. Rxf3 {[%clk 0:01:03]}  Be6 {[%clk 0:00:28]} 27. Qe3 {[%clk 0:00:50]}  Qa3 {[%clk 0:00:27]} 28. Qe1 {[%clk 0:00:24]}  Nc4 {[%clk 0:00:24]} 29. Rd3 {[%clk 0:00:18]}  Rf8 {[%clk 0:00:22]} 30. f4 {[%clk 0:00:18]}  a5 {[%clk 0:00:20]} 31. Nf2 {[%clk 0:00:17]}  Qc5 {[%clk 0:00:18]} 32. Rd4 {[%clk 0:00:17]}  a4 {[%clk 0:00:17]} 33. f5 {[%clk 0:00:16]}  Bf7 {[%clk 0:00:15]} 34. Qe2 {[%clk 0:00:14]}  Ne5 {[%clk 0:00:15]} 35. Rxa4 {[%clk 0:00:11]}  Qxc3 {[%clk 0:00:15]} 36. Ra7 {[%clk 0:00:10]}  Qc5 {[%clk 0:00:13]} 37. Ra1 {[%clk 0:00:09]}  Bc4 {[%clk 0:00:13]} 38. Qe1 {[%clk 0:00:08]}  Nf3+ {[%clk 0:00:12]} 39. Kg2 {[%clk 0:00:08]}  Nxe1+ {[%clk 0:00:13]} 40. Rxe1 {[%clk 0:00:09]}  Qe5 {[%clk 0:00:12]} 41. Ng4 {[%clk 0:00:09]}  Qxe4+ {[%clk 0:00:11]} 42. Rxe4 {[%clk 0:00:09]}  Bd5 {[%clk 0:00:10]} 43. Bd3 {[%clk 0:00:08]}  Rf7 {[%clk 0:00:11]} 44. Kf2 {[%clk 0:00:07]}  Bxe4 {[%clk 0:00:10]} 45. Bxe4 {[%clk 0:00:08]}  c5 {[%clk 0:00:10]} 46. Ke3 {[%clk 0:00:08]}  Re7 {[%clk 0:00:11]} 47. Nf2 {[%clk 0:00:08]}  Kf7 {[%clk 0:00:11]} 48. Nd3 {[%clk 0:00:08]}  c4 {[%clk 0:00:09]} 49. Nf2 {[%clk 0:00:07]}  Rd7 {[%clk 0:00:07]} 50. Ng4 {[%clk 0:00:06]}  c3 {[%clk 0:00:06]} 51. Ne5+ {[%clk 0:00:06]}  Ke7 {[%clk 0:00:05]} 52. Nxd7 {[%clk 0:00:07]}  Kxd7 {[%clk 0:00:05]} 53. Kd4 {[%clk 0:00:08]}  Kd6 {[%clk 0:00:05]} 54. Kxc3 {[%clk 0:00:09]}  Ke5 {[%clk 0:00:06]} 55. Kd3 {[%clk 0:00:10]} 1-0


[Site "https://www.chess.com"]

[Event "Titled Tuesday Blitz February 28 Early 2023"]
[White "Larina, Maria"]
[Black "Tarnowska, Aleksandra"]
[WhiteFideId "24113182"]
[BlackFideId "1180967"]
[WhiteElo "1848"]
[BlackElo "1776"]
[Result "0-1"]
[Round "08"]
[TimeControl "180+2"]
[Date "2023.02.28"]
[WhiteClock "0:00:08"]
[BlackClock "0:00:07"]

1. e4 {[%clk 0:03:00]}  c5 {[%clk 0:03:00]} 2. Nc3 {[%clk 0:03:00]}  d6 {[%clk 0:02:59]} 3. d4 {[%clk 0:02:59]}  cxd4 {[%clk 0:02:58]} 4. Qxd4 {[%clk 0:03:00]}  Nc6 {[%clk 0:02:58]} 5. Qd2 {[%clk 0:03:00]}  e6 {[%clk 0:02:56]} 6. b3 {[%clk 0:03:00]}  Be7 {[%clk 0:02:56]} 7. Bb2 {[%clk 0:03:00]}  Nf6 {[%clk 0:02:57]} 8. O-O-O {[%clk 0:03:00]}  O-O {[%clk 0:02:55]} 9. Kb1 {[%clk 0:03:01]}  a6 {[%clk 0:02:54]} 10. f3 {[%clk 0:03:01]}  Qc7 {[%clk 0:02:53]} 11. g4 {[%clk 0:03:01]}  b5 {[%clk 0:02:51]} 12. g5 {[%clk 0:03:00]}  Nd7 {[%clk 0:02:44]} 13. h4 {[%clk 0:02:55]}  b4 {[%clk 0:02:32]} 14. Na4 {[%clk 0:02:43]}  Nc5 {[%clk 0:02:31]} 15. Nxc5 {[%clk 0:02:33]}  dxc5 {[%clk 0:02:32]} 16. Nh3 {[%clk 0:01:41]}  a5 {[%clk 0:02:22]} 17. Bb5 {[%clk 0:01:39]}  Ba6 {[%clk 0:02:12]} 18. c4 {[%clk 0:01:25]}  Bxb5 {[%clk 0:01:55]} 19. cxb5 {[%clk 0:01:23]}  Rfd8 {[%clk 0:01:21]} 20. Qc2 {[%clk 0:01:06]}  Na7 {[%clk 0:00:59]} 21. f4 {[%clk 0:01:03]}  Nxb5 {[%clk 0:00:55]} 22. f5 {[%clk 0:01:01]}  Nc3+ {[%clk 0:00:42]} 23. Bxc3 {[%clk 0:01:01]}  bxc3 {[%clk 0:00:43]} 24. Qxc3 {[%clk 0:01:02]}  a4 {[%clk 0:00:41]} 25. f6 {[%clk 0:00:48]}  Bf8 {[%clk 0:00:41]} 26. e5 {[%clk 0:00:41]}  axb3 {[%clk 0:00:40]} 27. axb3 {[%clk 0:00:42]}  Rxd1+ {[%clk 0:00:31]} 28. Rxd1 {[%clk 0:00:41]}  Qa7 {[%clk 0:00:32]} 29. Qb2 {[%clk 0:00:38]}  c4 {[%clk 0:00:30]} 30. Rd2 {[%clk 0:00:24]}  cxb3 {[%clk 0:00:29]} 31. h5 {[%clk 0:00:18]}  Qe3 {[%clk 0:00:25]} 32. Nf2 {[%clk 0:00:14]}  Ba3 {[%clk 0:00:18]} 33. Qd4 {[%clk 0:00:11]}  Qxd4 {[%clk 0:00:04]} 34. Rxd4 {[%clk 0:00:12]}  Bc5 {[%clk 0:00:04]} 35. Rd2 {[%clk 0:00:12]}  Bxf2 {[%clk 0:00:02]} 36. Rxf2 {[%clk 0:00:12]}  gxf6 {[%clk 0:00:02]} 37. gxf6 {[%clk 0:00:11]}  Kf8 {[%clk 0:00:02]} 38. Rb2 {[%clk 0:00:10]}  Rb8 {[%clk 0:00:03]} 39. Kc1 {[%clk 0:00:10]}  Ke8 {[%clk 0:00:03]} 40. Kd2 {[%clk 0:00:10]}  Kd7 {[%clk 0:00:04]} 41. Kc3 {[%clk 0:00:11]}  Kc6 {[%clk 0:00:05]} 42. Kd4 {[%clk 0:00:10]}  Rb4+ {[%clk 0:00:05]} 43. Ke3 {[%clk 0:00:09]}  Rb5 {[%clk 0:00:05]} 44. Kd4 {[%clk 0:00:09]}  Rb4+ {[%clk 0:00:06]} 45. Ke3 {[%clk 0:00:10]}  Kd5 {[%clk 0:00:06]} 46. Rg2 {[%clk 0:00:08]}  Kxe5 {[%clk 0:00:07]} 47. Rg7 {[%clk 0:00:07]}  Kxf6 {[%clk 0:00:07]} 48. Rxh7 {[%clk 0:00:08]}  b2 {[%clk 0:00:07]} 49. Rh6+ {[%clk 0:00:08]}  Kg7 {[%clk 0:00:07]} 0-1


[Site "https://www.chess.com"]